bitfinex/quotes_BTCUSD_20250523
["timestamp","ask_amount","ask_price","bid_price","bid_amount"]
[1748003929430,0.64955658,108690.0,108680.0,0.00015261]
[1748003929654,0.64940848,108690.0,108680.0,0.00015261]
[1748003929865,0.65240848,108690.0,108680.0,0.00015261]
[1748003930336,0.71560848,108690.0,108680.0,0.00015261]
[1748003930972,1.03752731,108690.0,108680.0,0.00015261]
[1748003931197,0.71560848,108690.0,108680.0,0.00015261]
[1748003931417,1.03752731,108690.0,108680.0,0.00015261]
[1748003931812,0.20244717,108670.0,108660.0,0.08557468]
[1748003932024,0.20244717,108670.0,108660.0,0.06328481]
[1748003932234,0.20244717,108670.0,108660.0,0.05472734]
[1748003932460,0.29199273,108670.0,108660.0,0.00015266]
[1748003932666,0.20244717,108670.0,108660.0,0.06255266]
[1748003932879,0.20244717,108670.0,108660.0,0.16370819]
[1748003933554,0.20244717,108670.0,108660.0,0.27603266]
[1748003933872,0.20244717,108670.0,108660.0,0.27703266]
[1748003934251,0.21164866,108670.0,108660.0,0.34093266]
[1748003934458,0.20244717,108670.0,108660.0,0.53319587]
[1748003934593,0.00920157,108670.0,108660.0,0.72477093]
[1748003934812,0.00920107,108680.0,108670.0,0.21164917]
[1748003935032,0.19612528,108690.0,108680.0,0.19322764]
[1748003935249,0.21452597,108690.0,108680.0,0.52490649]
[1748003935468,0.21452597,108690.0,108680.0,1.09906781]
[1748003935682,0.20532575,108690.0,108680.0,0.87324]
[1748003935920,0.20514963,108690.0,108680.0,0.87324]
[1748003936587,0.20514963,108690.0,108680.0,0.93464]
[1748003937247,0.01193558,108690.0,108680.0,2.03827634]
[1748003937468,0.2235458,108690.0,108680.0,0.45864]
[1748003937797,0.00273578,108690.0,108680.0,1.64221598]
[1748003938899,0.00273578,108690.0,108680.0,1.98221598]
[1748003939670,0.00373578,108690.0,108680.0,1.98521598]
[1748003939907,0.04053615,108690.0,108680.0,0.76281542]
[1748003940211,0.03953598,108690.0,108680.0,1.63385623]
[1748003940415,0.21434625,108690.0,108680.0,1.52890905]
[1748003940626,0.21434625,108690.0,108680.0,1.53190905]
[1748003940841,0.21434625,108690.0,108680.0,1.9411102]
[1748003941054,0.011936,108690.0,108680.0,1.95951191]
[1748003941228,0.02113563,108690.0,108680.0,2.04905747]
[1748003941474,0.02113529,108690.0,108680.0,2.04905747]
[1748003941681,0.00273578,108690.0,108680.0,2.04905747]
[1748003941900,0.02113563,108690.0,108680.0,2.04905747]
[1748003942104,0.21434549,108690.0,108680.0,1.53178905]
[1748003942322,0.21434549,108690.0,108680.0,1.51338649]
[1748003942538,0.20514569,108690.0,108680.0,1.26496]
[1748003942793,0.20514569,108690.0,108680.0,1.45718764]
[1748003942998,0.03033593,108690.0,108680.0,0.67396935]
[1748003943167,0.20514569,108690.0,108680.0,1.26592]
[1748003943386,0.29469125,108690.0,108680.0,1.26592]
[1748003943783,0.29469125,108690.0,108680.0,0.40124]
[1748003943784,0.63469125,108690.0,108680.0,0.40124]
[1748003944036,0.71655978,108690.0,108680.0,0.004]
[1748003944256,1.69035093,108690.0,108680.0,0.004]
[1748003944458,1.31199093,108690.0,108680.0,0.004]
[1748003944648,1.32042745,108690.0,108680.0,0.004]
[1748003945228,1.33042745,108690.0,108680.0,0.004]
[1748003945480,1.41994896,108690.0,108680.0,0.002]
[1748003945796,0.55698802,108670.0,108660.0,0.00015266]
[1748003945973,0.64653358,108670.0,108660.0,0.00015266]
[1748003946190,0.6549701,108670.0,108660.0,0.00015266]
[1748003946537,0.6853701,108670.0,108660.0,0.00015266]
[1748003946780,1.13463009,108670.0,108660.0,0.00015266]
[1748003947192,1.41047009,108670.0,108660.0,0.00015266]
[1748003947438,1.41047009,108670.0,108660.0,0.00215266]
[1748003947640,1.08855126,108670.0,108660.0,0.00215266]
[1748003947870,1.07855126,108670.0,108660.0,0.00215266]
[1748003948657,1.07844819,108670.0,108660.0,0.00115266]
[1748003949009,0.65786703,108670.0,108660.0,0.00115266]
[1748003949294,0.68856703,108670.0,108660.0,0.00015266]
[1748003949711,0.66086703,108670.0,108660.0,0.00015266]
[1748003949922,0.65786703,108670.0,108660.0,0.00015266]
[1748003950118,0.65686703,108670.0,108660.0,0.00015266]
[1748003950341,0.64432618,108670.0,108660.0,0.00015266]
[1748003951002,0.74838854,108670.0,108660.0,0.00015266]
[1748003951232,0.75838854,108670.0,108660.0,0.00015266]
[1748003951436,0.74838854,108670.0,108660.0,0.00015266]
[1748003951809,0.75838854,108670.0,108660.0,0.00015266]
[1748003952234,0.65886703,108670.0,108660.0,0.00015266]
[1748003952816,0.64432618,108670.0,108660.0,0.00015266]
[1748003954213,0.98078586,108670.0,108660.0,0.00015266]
[1748003954397,0.65886703,108670.0,108660.0,0.00015266]
[1748003955022,0.65869691,108670.0,108660.0,0.00015266]
[1748003955197,0.19262444,108650.0,108640.0,0.57837914]
[1748003955475,0.20182813,108650.0,108640.0,0.50410982]
[1748003956606,0.20182813,108650.0,108640.0,0.50610982]
[1748003957254,0.21157489,108650.0,108640.0,0.50610982]
[1748003957817,0.21157489,108650.0,108640.0,0.47300982]
[1748003958026,0.21157489,108650.0,108640.0,0.19712982]
[1748003958235,0.21157489,108650.0,108640.0,0.47300982]
[1748003958644,0.21157489,108650.0,108640.0,0.50320982]
[1748003958853,0.21157489,108650.0,108640.0,0.47300982]
[1748003959052,0.98473401,108650.0,108640.0,0.00215275]
[1748003959535,0.99927486,108650.0,108640.0,0.00215275]
[1748003959744,0.92392853,108650.0,108640.0,0.00215275]
[1748003959955,0.98522853,108650.0,108640.0,0.00115275]
[1748003960163,0.99522853,108650.0,108640.0,0.00115275]
[1748003960367,0.99522853,108650.0,108600.0,0.0109526]
[1748003960368,0.20255901,108610.0,108600.0,0.0109526]
[1748003960618,0.9003718,108610.0,108600.0,0.01110535]
[1748003960821,0.63210457,108610.0,108600.0,0.01110535]
[1748003961024,0.63210457,108610.0,108600.0,0.00015275]
[1748003962718,0.63210457,108610.0,108600.0,0.00115275]
[1748003962944,0.20255901,108610.0,108600.0,0.03195275]
[1748003963169,0.20255901,108610.0,108600.0,0.08862848]
[1748003963373,0.20255901,108610.0,108600.0,0.27279054]
[1748003963583,0.01841331,108610.0,108600.0,0.30041356]
[1748003963805,0.01841331,108610.0,108600.0,0.56712631]
[1748003964008,0.00920657,108610.0,108600.0,0.58554157]
[1748003964238,0.46005518,108640.0,108620.0,0.21652815]
[1748003964441,0.20252181,108630.0,108620.0,0.28939253]
[1748003964671,0.02761514,108630.0,108620.0,0.5440007]
[1748003964885,0.01840984,108630.0,108620.0,0.56241265]
[1748003965068,0.01020454,108640.0,108630.0,0.22491676]
[1748003965265,0.19429853,108640.0,108630.0,0.25721676]
[1748003965513,0.01220395,108640.0,108630.0,0.27562745]
[1748003965780,0.02140815,108640.0,108630.0,0.28483258]
[1748003966000,0.02140815,108640.0,108630.0,0.29403754]
[1748003966001,0.01940798,108640.0,108630.0,0.29403754]
[1748003966207,0.03781637,108640.0,108630.0,0.27562745]
[1748003966429,0.04902082,108640.0,108630.0,0.26642223]
[1748003966634,0.04802149,108640.0,108630.0,0.27562753]
[1748003966840,0.03881687,108640.0,108630.0,0.27562753]
[1748003967039,0.03881687,108640.0,108630.0,0.28483275]
[1748003967241,0.03881738,108640.0,108630.0,0.27562762]
[1748003967465,0.18509425,108640.0,108620.0,0.58912]
[1748003967673,0.19331659,108630.0,108620.0,0.58912]
[1748003968455,0.28286215,108630.0,108620.0,0.58912]
[1748003968686,0.28286215,108630.0,108620.0,0.59212]
[1748003968893,0.28286215,108630.0,108620.0,0.59112]
[1748003969042,0.28286215,108630.0,108620.0,0.002]
[1748003969249,0.28286215,108630.0,108620.0,0.001]
[1748003969493,0.21174659,108620.0,108610.0,0.46010447]
[1748003969999,0.2025407,108620.0,108610.0,0.46010447]
[1748003970267,0.2025407,108620.0,108610.0,0.49110447]
[1748003970482,0.19333455,108620.0,108610.0,0.27596]
[1748003970692,0.19333455,108620.0,108610.0,0.46931235]
[1748003970915,0.2025407,108620.0,108610.0,0.49931235]
[1748003971116,0.2025407,108620.0,108610.0,0.54703889]
[1748003971316,0.02761844,108620.0,108610.0,0.51151952]
[1748003971521,0.21174659,108620.0,108610.0,0.4931051]
[1748003971731,0.21174659,108620.0,108610.0,0.50231235]
[1748003971939,0.21174659,108620.0,108610.0,0.4931051]
[1748003972166,0.02761827,108620.0,108610.0,0.23555943]
[1748003972371,0.03682467,108620.0,108610.0,0.51151952]
[1748003972577,0.03682467,108620.0,108610.0,0.50231235]
[1748003972751,0.03682467,108620.0,108610.0,0.50231227]
[1748003972962,0.02761827,108620.0,108610.0,0.50231235]
[1748003973394,0.22095282,108620.0,108610.0,0.50231235]
[1748003973542,0.01841153,108620.0,108610.0,0.51151952]
[1748003973749,0.03682374,108620.0,108610.0,0.51151952]
[1748003973952,0.02761751,108620.0,108610.0,0.50231235]
[1748003974153,0.03682366,108620.0,108610.0,0.50231235]
[1748003974355,0.03682366,108620.0,108610.0,0.51151952]
[1748003974553,0.05920564,108620.0,108610.0,0.2771666]
[1748003974759,0.05,108620.0,108610.0,1.15229975]
[1748003974988,0.79395608,108630.0,108610.0,1.15229975]
[1748003974989,0.80316155,108630.0,108610.0,1.14309258]
[1748003975193,0.90693275,108630.0,108620.0,0.18412815]
[1748003975397,0.001,108640.0,108630.0,0.25731659]
[1748003975541,0.0102042,108640.0,108630.0,0.54248181]
[1748003975797,0.03781722,108640.0,108630.0,0.5240712]
[1748003976012,0.03781722,108640.0,108630.0,0.53327659]
[1748003976212,0.22191147,108640.0,108630.0,0.2481112]
[1748003976417,0.02761793,108620.0,108610.0,0.2184451]
[1748003976636,0.21174608,108620.0,108610.0,1.0745051]
[1748003976836,0.21174608,108620.0,108610.0,1.0725051]
[1748003977061,0.20255876,108610.0,108600.0,0.19526741]
[1748003977308,0.19335227,108610.0,108600.0,0.01110535]
[1748003977513,0.28289783,108610.0,108600.0,0.01110535]
[1748003977718,0.32960043,108610.0,108600.0,0.01110535]
[1748003978130,0.28089783,108610.0,108600.0,0.01110535]
[1748003978744,0.28089783,108610.0,108600.0,0.00315275]
[1748003979269,0.28089783,108610.0,108600.0,0.00415275]
[1748003980076,0.66543868,108610.0,108600.0,0.00115275]
[1748003980311,0.69843868,108610.0,108600.0,0.00115275]
[1748003980502,0.78785211,108610.0,108600.0,0.00215275]
[1748003980703,0.6983306,108610.0,108600.0,0.00215275]
[1748003980944,0.6983306,108610.0,108600.0,0.00015275]
[1748003981085,0.6653306,108610.0,108600.0,0.00015275]
[1748003981562,0.6983306,108610.0,108600.0,0.00015275]
[1748003983354,1.29650917,108610.0,108600.0,0.00015275]
[1748003983559,1.38603068,108610.0,108600.0,0.00015275]
[1748003984530,0.6993306,108610.0,108600.0,0.00015275]
[1748003984726,0.6663306,108610.0,108600.0,0.00015275]
[1748003984936,0.28278975,108610.0,108600.0,0.00015275]
[1748003985211,0.19324419,108610.0,108600.0,0.03285275]
[1748003985431,0.19324419,108610.0,108600.0,0.53492274]
[1748003985643,0.01120649,108610.0,108600.0,0.553338]
[1748003985850,0.21376558,108610.0,108600.0,0.34155275]
[1748003986011,0.29410457,108610.0,108600.0,0.27619275]
[1748003986422,0.29410457,108610.0,108600.0,0.00015275]
[1748003986627,0.29310457,108610.0,108600.0,0.00015275]
[1748003986788,0.20355901,108610.0,108600.0,0.00015275]
[1748003986992,0.2033919,108610.0,108600.0,0.25752291]
[1748003987199,0.19335184,108610.0,108600.0,0.25752257]
[1748003987405,0.03682739,108610.0,108600.0,0.31287094]
[1748003987606,0.03682731,108610.0,108600.0,0.4878255]
[1748003987799,0.03682714,108610.0,108600.0,0.497033]
[1748003988211,0.02762006,108610.0,108600.0,0.497033]
[1748003988426,0.03682714,108610.0,108600.0,0.497033]
[1748003988616,0.22097224,108610.0,108600.0,0.47861783]
[1748003988830,0.21176567,108610.0,108600.0,0.478618]
[1748003989191,0.21176618,108610.0,108600.0,1.059538]
[1748003989401,0.19335227,108610.0,108600.0,0.85696]
[1748003990354,0.20255918,108610.0,108600.0,1.06874559]
[1748003990557,0.01841357,108610.0,108600.0,1.14105309]
[1748003990804,0.02762057,108610.0,108600.0,1.14105309]
[1748003991044,0.01841212,108620.0,108610.0,0.21175084]
[1748003991257,0.21174651,108620.0,108610.0,0.27485084]
[1748003991468,0.03682391,108620.0,108610.0,0.37360306]
[1748003991594,0.22095206,108620.0,108610.0,0.15264556]
[1748003991965,0.20254053,108620.0,108610.0,0.22625218]
[1748003992188,0.20254053,108620.0,108610.0,0.2170451]
[1748003992404,0.20254053,108620.0,108610.0,0.23545943]
[1748003992619,0.20354053,108620.0,108610.0,0.25387334]
[1748003992871,0.02846099,108620.0,108610.0,0.29557949]
[1748003993098,0.002,108620.0,108610.0,0.38512505]
[1748003993317,0.002,108620.0,108610.0,1.12512505]
[1748003994072,0.001,108620.0,108610.0,1.12512505]
[1748003994320,0.0368207,108630.0,108620.0,0.21174634]
[1748003994563,0.0368207,108630.0,108620.0,0.6396319]
[1748003994766,0.18509425,108640.0,108630.0,0.19331676]
[1748003994983,0.19331659,108630.0,108620.0,0.91884]
[1748003995201,0.20254019,108620.0,108610.0,0.95451023]
[1748003995428,0.01841179,108620.0,108610.0,1.94120253]
[1748003995632,0.02761802,108620.0,108610.0,1.61040919]
[1748003995838,0.03682391,108620.0,108610.0,1.60766384]
[1748003996070,0.04603023,108620.0,108610.0,1.64036384]
[1748003996275,0.03682391,108620.0,108610.0,1.64036384]
[1748003996508,0.03682391,108620.0,108610.0,0.43845763]
[1748003996704,0.0276231,108600.0,108590.0,0.85764831]
[1748003996910,0.22920127,108600.0,108590.0,1.23255553]
[1748003997125,0.18415551,108610.0,108600.0,0.19336999]
[1748003997295,0.18415551,108610.0,108600.0,0.19337007]
[1748003997506,0.20257791,108600.0,108590.0,1.22334701]
[1748003997854,0.00920767,108600.0,108590.0,1.23255536]
[1748003998063,0.36761793,108620.0,108610.0,0.24316626]
[1748003998263,0.36761793,108620.0,108610.0,0.34191848]
[1748003998480,0.37682433,108620.0,108610.0,1.19871865]
[1748003998723,0.36761793,108620.0,108610.0,1.2079248]
[1748003998927,0.19331707,108630.0,108620.0,0.2025407]
[1748003998928,0.01841061,108630.0,108620.0,0.2025407]
[1748003999127,0.35841052,108630.0,108620.0,0.22095257]
[1748003999288,0.56075412,108630.0,108620.0,0.25235274]
[1748003999485,0.55154916,108630.0,108620.0,0.24314676]
[1748004000141,0.55154916,108630.0,108620.0,0.25235265]
[1748004000364,0.56075395,108630.0,108620.0,0.2339407]
[1748004000588,0.56075395,108630.0,108620.0,0.64314676]
[1748004000798,0.54234394,108630.0,108620.0,0.4]
[1748004001019,0.19333438,108620.0,108610.0,0.5818]
[1748004001245,0.53333438,108620.0,108610.0,0.8578]
[1748004002096,0.53333438,108620.0,108610.0,0.8568]
[1748004002300,0.20255918,108610.0,108600.0,0.5839326]
[1748004002513,0.20155918,108610.0,108600.0,0.84898]
[1748004002729,0.20055918,108610.0,108600.0,0.84898]
[1748004003160,0.63010474,108610.0,108600.0,0.0001]
[1748004003415,0.53336999,108600.0,108590.0,0.27440043]
[1748004003651,0.1933878,108590.0,108580.0,0.0109526]
[1748004003876,0.5333878,108590.0,108580.0,0.01110556]
[1748004004316,0.65213336,108590.0,108580.0,0.01110556]
[1748004004534,0.65213336,108590.0,108580.0,0.00015296]
[1748004004755,0.61993336,108590.0,108580.0,0.00015296]
[1748004005187,0.65273336,108590.0,108580.0,0.00015296]
[1748004005414,0.77198377,108590.0,108580.0,0.00215296]
[1748004005656,0.68524423,108590.0,108580.0,0.00015296]
[1748004005885,0.69456381,108590.0,108580.0,0.00115296]
[1748004006095,0.70910466,108590.0,108580.0,0.00215296]
[1748004006282,1.30704688,108590.0,108580.0,0.00215296]
[1748004006535,1.30704688,108590.0,108580.0,0.00115296]
[1748004006774,1.39756839,108590.0,108580.0,0.00015296]
[1748004007010,1.42693399,108590.0,108580.0,0.00015296]
[1748004007226,0.55719315,108560.0,108550.0,0.0002]
[1748004007458,1.30688093,108560.0,108550.0,0.00071067]
[1748004007671,1.00604598,108560.0,108550.0,0.00071067]
[1748004007891,1.41750971,108560.0,108550.0,0.00071067]
[1748004008104,1.40640244,108560.0,108550.0,0.00071067]
[1748004008321,1.72834466,108560.0,108550.0,0.00071067]
[1748004008549,0.88994213,108550.0,108540.0,1e-08]
[1748004008831,1.04478769,108550.0,108540.0,0.00015303]
[1748004009045,1.1243092,108550.0,108540.0,0.00015303]
[1748004009279,1.1343092,108550.0,108540.0,0.00015303]
[1748004009488,0.97884547,108550.0,108540.0,0.00015303]
[1748004010158,0.55194146,108520.0,108510.0,0.20250447]
[1748004010374,0.54272717,108520.0,108510.0,0.1934422]
[1748004010589,0.54272717,108520.0,108510.0,0.0001533]
[1748004010790,0.20272717,108520.0,108510.0,0.0001533]
[1748004011001,0.20272717,108520.0,108510.0,0.19368384]
[1748004011214,0.19351262,108520.0,108510.0,0.1844681]
[1748004011423,0.19451262,108520.0,108510.0,0.1844681]
[1748004011619,0.1851247,108520.0,108510.0,0.0001533]
[1748004011878,0.27467026,108520.0,108510.0,0.0001533]
[1748004012959,0.12740358,108520.0,108510.0,0.0001533]
[1748004013175,0.11818895,108520.0,108510.0,0.0001533]
[1748004013357,0.30248677,108520.0,108510.0,0.0001533]
[1748004013600,0.29327256,108520.0,108510.0,0.0001533]
[1748004013895,0.30781341,108520.0,108510.0,0.1844681]
[1748004014443,0.29859895,108520.0,108510.0,0.0001533]
[1748004014656,0.33139895,108520.0,108510.0,0.1844681]
[1748004014861,0.32218423,108520.0,108510.0,0.0001533]
[1748004015098,0.40485371,108520.0,108510.0,0.0001533]
[1748004015302,0.40485371,108520.0,108510.0,0.1844681]
[1748004015512,0.40385371,108520.0,108510.0,0.0001533]
[1748004015942,0.40585371,108520.0,108510.0,0.0001533]
[1748004016204,0.35728423,108520.0,108510.0,0.0001533]
[1748004016403,0.35528423,108520.0,108510.0,0.0001533]
[1748004016778,0.35828423,108520.0,108510.0,0.0001533]
[1748004019630,0.69828423,108520.0,108510.0,0.0001533]
[1748004020498,1.02022645,108520.0,108510.0,0.0001533]
[1748004020707,1.11974796,108520.0,108510.0,0.0001533]
[1748004020914,0.78780574,108520.0,108510.0,0.0001533]
[1748004021995,0.84313574,108520.0,108510.0,0.0001533]
[1748004022195,1.10974796,108520.0,108510.0,0.0001533]
[1748004023471,1.11674796,108520.0,108510.0,0.0001533]
[1748004024470,1.43569018,108520.0,108510.0,0.0001533]
[1748004024893,0.79780574,108520.0,108510.0,0.0001533]
[1748004025106,1.96646796,108520.0,108510.0,0.0001533]
[1748004025320,0.80180574,108520.0,108510.0,0.0001533]
[1748004025542,1.63752574,108520.0,108510.0,0.0011533]
[1748004025959,1.96946796,108520.0,108510.0,0.0011533]
[1748004026379,1.97646796,108520.0,108510.0,0.0021533]
[1748004027219,2.29841018,108520.0,108510.0,0.0021533]
[1748004027424,1.97646796,108520.0,108510.0,0.0021533]
[1748004028184,2.29841018,108520.0,108510.0,0.0021533]
[1748004028394,2.34532427,108520.0,108510.0,0.0021533]
[1748004028858,0.55807122,108510.0,108500.0,0.0002]
[1748004029057,1.10630223,108510.0,108500.0,0.00035334]
[1748004029415,1.93495496,108510.0,108500.0,0.00035334]
[1748004029995,1.92503496,108510.0,108500.0,0.00035334]
[1748004030193,0.70061678,108510.0,108500.0,0.00035334]
[1748004030399,1.24227678,108510.0,108500.0,0.00035334]
[1748004030811,1.564219,108510.0,108500.0,0.00035334]
[1748004031011,1.023159,108510.0,108500.0,0.00035334]
[1748004031291,0.70821678,108510.0,108500.0,0.00135334]
[1748004031468,0.73413829,108510.0,108500.0,0.00135334]
[1748004031919,0.74013829,108510.0,108500.0,0.00235334]
[1748004032880,0.01843512,108480.0,108470.0,0.22615782]
[1748004033074,0.02765298,108480.0,108470.0,0.23486578]
[1748004033397,0.03687101,108480.0,108470.0,0.26636578]
[1748004033590,0.20280192,108480.0,108470.0,0.07290796]
[1748004033961,0.20280192,108480.0,108470.0,0.47290796]
[1748004034386,0.20680192,108480.0,108470.0,0.07290796]
[1748004034793,0.20680192,108480.0,108470.0,0.26650986]
[1748004035040,0.20680192,108480.0,108470.0,0.07290796]
[1748004035370,0.29634748,108480.0,108470.0,0.04140796]
[1748004037197,0.29634748,108480.0,108470.0,0.03285342]
[1748004038138,0.29634748,108480.0,108470.0,0.00015342]
[1748004040228,0.29634748,108480.0,108470.0,0.03035342]
[1748004040666,0.29634748,108480.0,108470.0,0.00015342]
[1748004041294,0.6398091,108480.0,108470.0,0.00015342]
[1748004041505,0.7253104,108480.0,108470.0,0.00015342]
[1748004041722,0.99434995,108480.0,108470.0,0.00015342]
[1748004041932,1.08387146,108480.0,108470.0,0.00015342]
[1748004042142,1.11677146,108480.0,108470.0,0.00015342]
[1748004042355,0.88003191,108480.0,108470.0,0.00015342]
[1748004042567,1.14907146,108480.0,108470.0,0.00015342]
[1748004042993,1.07464939,108480.0,108470.0,0.00015342]
[1748004043411,1.04234939,108480.0,108470.0,0.00015342]
[1748004043822,1.07374939,108480.0,108470.0,0.00015342]
[1748004044793,0.77330984,108480.0,108470.0,0.00015342]
[1748004044940,0.65088833,108480.0,108470.0,0.00015342]
[1748004045348,0.29634748,108480.0,108470.0,0.00937255]
[1748004045591,0.09354556,108480.0,108470.0,0.21653619]
[1748004045794,0.004,108480.0,108470.0,0.27439257]
[1748004046030,0.004,108480.0,108470.0,0.70393813]
[1748004046251,0.004,108480.0,108470.0,1.94725813]
[1748004046794,0.002,108480.0,108470.0,1.94725813]
[1748004047004,0.003,108480.0,108470.0,1.9618616]
[1748004047234,0.1842958,108530.0,108520.0,0.0092148]
[1748004047442,0.2119418,108520.0,108510.0,0.0622]
[1748004047655,0.20272734,108520.0,108510.0,0.0622]
[1748004047871,0.00921455,108520.0,108510.0,0.26494568]
[1748004048084,0.21194146,108520.0,108510.0,0.07141574]
[1748004048293,0.00921429,108520.0,108510.0,0.28568042]
[1748004048614,0.0276433,108520.0,108510.0,0.28353015]
[1748004048793,0.19350984,108530.0,108520.0,0.2743418]
[1748004048794,0.01842731,108530.0,108520.0,0.2743418]
[1748004049004,0.2119221,108530.0,108520.0,0.26512751]
[1748004049171,0.20270857,108530.0,108520.0,0.26512751]
[1748004049418,0.20270857,108530.0,108520.0,0.0624]
[1748004049597,0.19349479,108530.0,108520.0,0.09790765]
[1748004050390,0.004,108530.0,108520.0,0.30984911]
[1748004050624,0.004,108530.0,108520.0,0.73939467]
[1748004051199,0.007,108530.0,108520.0,0.73869448]
[1748004051411,0.20570849,108530.0,108520.0,0.40169981]
[1748004051611,0.20570849,108530.0,108520.0,0.33801981]
[1748004051612,0.19349479,108530.0,108520.0,0.33801981]
[1748004051884,0.19349479,108530.0,108520.0,0.06199961]
[1748004052057,0.19349479,108530.0,108520.0,0.14049807]
[1748004052679,0.19349479,108530.0,108520.0,0.14149807]
[1748004053078,0.19349479,108530.0,108520.0,0.14249807]
[1748004053439,0.22113597,108530.0,108520.0,0.32809939]
[1748004053568,0.21192236,108530.0,108520.0,0.14249807]
[1748004053782,0.20270866,108530.0,108520.0,0.14249807]
[1748004054093,0.20270866,108530.0,108520.0,0.002]
[1748004054498,0.29225422,108530.0,108520.0,0.002]
[1748004055165,0.3618892,108530.0,108520.0,0.002]
[1748004055373,0.4250892,108530.0,108520.0,0.002]
[1748004055600,0.29225422,108530.0,108520.0,0.002]
[1748004056638,0.29225422,108530.0,108520.0,0.001]
[1748004057072,0.29325422,108530.0,108520.0,0.001]
[1748004057280,0.30779507,108530.0,108520.0,0.001]
[1748004057484,0.29425422,108530.0,108520.0,0.001]
[1748004058473,0.34954835,108530.0,108520.0,0.001]
[1748004058678,0.29425422,108530.0,108520.0,0.001]
[1748004058817,0.33939507,108530.0,108520.0,0.001]
[1748004059021,0.30879507,108530.0,108520.0,0.001]
[1748004059473,0.21196074,108510.0,108500.0,1.22283893]
[1748004059686,0.00921497,108510.0,108500.0,1.27267117]
[1748004059884,0.02764534,108510.0,108500.0,0.67527899]
[1748004060095,0.03686074,108510.0,108500.0,1.51727899]
[1748004060361,0.01842893,108520.0,108510.0,0.20273238]
[1748004060559,0.01842893,108520.0,108510.0,0.24324752]
[1748004060560,0.01842867,108520.0,108510.0,0.24324752]
[1748004060871,0.21194163,108520.0,108510.0,0.25621698]
[1748004061294,0.20272717,108520.0,108510.0,0.23403255]
[1748004061488,0.20272717,108520.0,108510.0,0.24324803]
[1748004061710,0.20272717,108520.0,108510.0,0.24424803]
[1748004061917,0.20272717,108520.0,108510.0,0.23503255]
[1748004062219,0.20272717,108520.0,108510.0,0.28996634]
[1748004062402,0.01842935,108520.0,108510.0,0.24424803]
[1748004062601,0.20272717,108520.0,108510.0,0.25346343]
[1748004062824,0.21194206,108520.0,108510.0,0.26367874]
[1748004063024,0.21194146,108520.0,108510.0,0.29617832]
[1748004063236,0.02764364,108520.0,108510.0,0.34189688]
[1748004063443,0.21194146,108520.0,108510.0,0.27774778]
[1748004063651,0.21194146,108520.0,108510.0,0.96320309]
[1748004063857,0.01842867,108520.0,108510.0,0.97241823]
[1748004064062,0.0276433,108520.0,108510.0,0.97241823]
[1748004064269,0.01842867,108520.0,108510.0,0.97241823]
[1748004064528,0.03685785,108520.0,108510.0,0.97241823]
[1748004064711,0.03685776,108520.0,108510.0,0.97241823]
[1748004064927,0.02764313,108520.0,108510.0,0.97241823]
[1748004065343,0.04607231,108520.0,108510.0,0.97241823]
[1748004065562,0.00015341,108530.0,108520.0,0.01842884]
[1748004065786,0.00015341,108530.0,108520.0,0.70809021]
[1748004065995,4.533e-05,108530.0,108520.0,0.70578702]
[1748004066425,4.533e-05,108530.0,108520.0,0.69657273]
[1748004066426,0.0184723,108530.0,108520.0,0.69657273]
[1748004066632,0.01025869,108530.0,108520.0,0.70578702]
[1748004066843,0.00104533,108530.0,108520.0,0.66578702]
[1748004067089,0.00104533,108530.0,108520.0,1.04348702]
[1748004067299,0.0092586,108530.0,108520.0,0.95394146]
[1748004067718,0.0092586,108530.0,108520.0,0.95594146]
[1748004068842,0.01847204,108530.0,108520.0,0.95594146]
[1748004069044,4.533e-05,108530.0,108520.0,0.95594146]
[1748004069516,4.533e-05,108530.0,108520.0,1.07668702]
[1748004069937,4.533e-05,108530.0,108520.0,1.10868702]
[1748004071410,0.002,108570.0,108560.0,0.21186337]
[1748004071411,0.02042001,108570.0,108560.0,0.21186337]
[1748004071615,0.04820467,108570.0,108560.0,0.21186337]
[1748004071824,0.22320774,108570.0,108560.0,0.20265247]
[1748004072022,0.22320774,108570.0,108560.0,0.21186354]
[1748004072226,0.01136329,108570.0,108560.0,0.22107444]
[1748004072433,0.01136346,108570.0,108560.0,0.22107444]
[1748004072654,0.01536346,108570.0,108560.0,0.22107444]
[1748004072850,0.00615333,108570.0,108560.0,0.31062]
[1748004073063,0.00215333,108570.0,108560.0,0.65062]
[1748004073267,0.00215333,108570.0,108560.0,0.71242]
[1748004073676,0.00815333,108570.0,108560.0,1.11242]
[1748004074091,0.00415333,108570.0,108560.0,1.11242]
[1748004074300,0.00415333,108570.0,108560.0,1.05062]
[1748004074501,0.00415333,108570.0,108560.0,1.79623444]
[1748004074730,0.00215333,108570.0,108560.0,1.88578]
[1748004074956,0.00215333,108570.0,108560.0,1.94888]
[1748004075612,0.00215333,108570.0,108560.0,1.88578]
[1748004075791,0.00215333,108570.0,108560.0,1.79619444]
[1748004075993,0.00315333,108570.0,108560.0,1.88574]
[1748004076201,0.00415333,108570.0,108560.0,1.94644]
[1748004078708,0.00415333,108570.0,108560.0,1.95744562]
[1748004080667,0.00415333,108570.0,108560.0,1.92734562]
[1748004080871,0.00415333,108570.0,108560.0,1.68308753]
[1748004081028,0.00415333,108570.0,108560.0,1.86731744]
[1748004081233,0.00415333,108570.0,108560.0,1.88574]
[1748004081870,0.00415333,108570.0,108560.0,1.91894]
[1748004082072,0.00415333,108570.0,108560.0,1.97488085]
[1748004082961,0.00315333,108570.0,108560.0,1.97488085]
[1748004083110,0.00215333,108570.0,108560.0,1.97488085]
[1748004083330,0.00215333,108570.0,108560.0,7.02688085]
[1748004083491,0.00215333,108570.0,108560.0,2.99768085]
[1748004083978,0.00215333,108570.0,108560.0,2.53100085]
[1748004084292,0.00215333,108570.0,108560.0,3.36584085]
[1748004084718,0.00215333,108570.0,108560.0,2.04442]
[1748004084888,0.00215333,108570.0,108560.0,2.3205]
[1748004085250,0.00215333,108570.0,108560.0,1.48566]
[1748004085450,0.00215333,108570.0,108560.0,2.33504085]
[1748004087706,0.00215333,108570.0,108560.0,1.61214688]
[1748004087707,0.02978398,108570.0,108560.0,1.61214688]
[1748004087907,0.27619693,108570.0,108560.0,1.52260132]
[1748004088110,0.26698697,108570.0,108560.0,1.11338991]
[1748004088314,0.26698697,108570.0,108560.0,0.37044]
[1748004088535,0.35653253,108570.0,108560.0,0.37044]
[1748004088871,0.35653253,108570.0,108560.0,0.3658017]
[1748004089290,0.37107338,108570.0,108560.0,0.3658017]
[1748004089456,0.35653253,108570.0,108560.0,0.3658017]
[1748004090070,0.35853253,108570.0,108560.0,0.3658017]
[1748004090269,0.43478876,108570.0,108560.0,0.3658017]
[1748004090485,0.37307338,108570.0,108560.0,0.3658017]
[1748004091341,0.37307338,108570.0,108540.0,0.39772]
[1748004091342,0.26417098,108550.0,108540.0,0.39772]
[1748004091685,0.26417098,108550.0,108540.0,0.59119696]
[1748004092583,0.07992409,108550.0,108540.0,0.6096224]
[1748004092781,0.27438306,108550.0,108540.0,0.60962249]